lending/lending_fUSD_20241211
["ID","MTS","AMOUNT","RATE_DAILY","PERIOD"]
[344967841,1733899877357,-500.0,0.00011099,2]
[344967842,1733899877372,-576.90416315,0.00011099,2]
[344967843,1733899877386,-500.0,0.00011099,2]
[344967844,1733899877400,-500.0,0.00011099,2]
[344967845,1733899877417,-500.0,0.00011099,2]
[344967846,1733899877431,-500.0,0.00011099,2]
[344967847,1733899877446,-500.0,0.00011099,2]
[344967848,1733899877461,-500.0,0.00011099,2]
[344967849,1733899877475,-500.0,0.00011099,2]
[344967850,1733899877490,-500.0,0.00011099,2]
[344967851,1733899877504,-500.0,0.00011099,2]
[344967852,1733899877519,-500.0,0.00011099,2]
[344967853,1733899877534,-500.0,0.00011099,2]
[344967854,1733899877548,-500.0,0.00011099,2]
[344967855,1733899877562,-500.0,0.00011099,2]
[344967856,1733899877576,-500.0,0.00011099,2]
[344967857,1733899877589,-339.21547991,0.00011099,2]
[344967858,1733899877604,-447.07688301,0.00011099,2]
[344967859,1733899877618,-500.0,0.00011099,2]
[344967860,1733899877634,-500.0,0.00011099,2]
[344967861,1733899877650,-500.0,0.00011099,2]
[344967862,1733899877670,-500.0,0.00011099,2]
[344967863,1733899877685,-500.0,0.00011099,2]
[344967864,1733899877700,-500.0,0.00011099,2]
[344967865,1733899877711,-500.0,0.00011099,2]
[344967866,1733899877721,-500.0,0.00011099,2]
[344967867,1733899877730,-500.0,0.00011099,2]
[344967868,1733899877741,-500.0,0.00011099,2]
[344967869,1733899877750,-500.0,0.00011099,2]
[344967870,1733899877760,-500.0,0.00011099,2]
[344967871,1733899877770,-500.0,0.00011099,2]
[344967872,1733899877780,-500.0,0.00011099,2]
[344967873,1733899877790,-500.0,0.00011099,2]
[344967874,1733899877800,-500.0,0.00011099,2]
[344967875,1733899877809,-500.0,0.00011099,2]
[344967876,1733899877820,-500.0,0.00011099,2]
[344967877,1733899877829,-500.0,0.00011099,2]
[344967878,1733899877840,-164.01298675,0.00011099,2]
[344967879,1733899877850,-561.06,0.00011099,2]
[344967880,1733899877860,-561.06,0.00011099,2]
[344967881,1733899877870,-561.06,0.00011099,2]
[344967882,1733899877880,-561.06,0.00011099,2]
[344967883,1733899877889,-561.06,0.00011099,2]
[344967884,1733899877899,-561.06,0.00011099,2]
[344967885,1733899877910,-561.06,0.00011099,2]
[344967886,1733899877920,-561.06,0.00011099,2]
[344967887,1733899877929,-561.06,0.00011099,2]
[344967888,1733899877939,-561.06,0.00011099,2]
[344967889,1733899877948,-561.06,0.00011099,2]
[344967890,1733899877959,-561.06,0.00011099,2]
[344967891,1733899877969,-561.06,0.00011099,2]
[344967892,1733899877979,-561.06,0.00011099,2]
[344967893,1733899877989,-561.06,0.00011099,2]
[344967894,1733899877999,-561.06,0.00011099,2]
[344967895,1733899878008,-561.06,0.00011099,2]
[344967896,1733899878019,-561.06,0.00011099,2]
[344967897,1733899878031,-561.06,0.00011099,2]
[344967898,1733899878041,-561.06,0.00011099,2]
[344967899,1733899878051,-561.06,0.00011099,2]
[344967900,1733899878060,-561.06,0.00011099,2]
[344967901,1733899878069,-561.06,0.00011099,2]
[344967902,1733899878079,-561.2244815,0.00011099,2]
[344967903,1733899878089,-500.0,0.00011099,2]
[344967904,1733899878098,-500.0,0.00011099,2]
[344967905,1733899878108,-503.50602921,0.00011099,2]
[344967906,1733899878118,-500.0,0.00011099,2]
[344967907,1733899878127,-500.0,0.00011099,2]
[344967908,1733899878137,-500.0,0.00011099,2]
[344967909,1733899878523,-500.0,0.00011099,2]
[344967910,1733899878551,-500.0,0.00011099,2]
[344967911,1733899878569,-500.0,0.00011099,2]
[344967912,1733899878582,-500.0,0.00011099,2]
[344967913,1733899878591,-500.0,0.00011099,2]
[344967914,1733899878609,-536.44966861,0.00011099,2]
[344967915,1733899878621,-558.06469887,0.00011099,2]
[344967916,1733899878631,-500.0,0.00011099,2]
[344967917,1733899878641,-500.0,0.00011099,2]
[344967918,1733899878651,-500.0,0.00011099,2]
[344967919,1733899878664,-500.0,0.00011099,2]
[344967920,1733899878674,-500.0,0.00011099,2]
[344967921,1733899878683,-500.0,0.00011099,2]
[344967922,1733899878693,-538.95686835,0.00011099,2]
[344967923,1733899878703,-500.0,0.00011099,2]
[344967924,1733899878713,-501.77082624,0.00011099,2]
[344967925,1733899878723,-500.0,0.00011099,2]
[344967926,1733899878732,-500.0,0.00011099,2]
[344967927,1733899878742,-510.23266471,0.00011099,2]
[344967928,1733899878752,-392.57592036,0.00011099,2]
[344967929,1733899878762,-500.0,0.00011099,2]
[344967930,1733899878772,-500.0,0.00011099,2]
[344967931,1733899878782,-500.0,0.00011099,2]
[344967932,1733899878792,-500.0,0.00011099,2]
[344967933,1733899878802,-500.0,0.00011099,2]
[344967934,1733899878811,-500.0,0.00011099,2]
[344967935,1733899878822,-500.0,0.00011099,2]
[344967936,1733899878834,-500.0,0.00011099,2]
[344967937,1733899878844,-500.0,0.00011099,2]
[344967938,1733899878853,-438.71258763,0.00011099,2]
[344967939,1733899878863,-500.0,0.00011099,2]
[344967940,1733899878872,-460.13696908,0.00011099,2]
[344967941,1733899878883,-500.0,0.00011099,2]
[344967942,1733899878892,-500.0,0.00011099,2]
[344967943,1733899878902,-500.0,0.00011099,2]
[344967944,1733899878917,-500.0,0.00011099,2]
[344967945,1733899878927,-500.0,0.00011099,2]
[344967946,1733899878936,-500.0,0.00011099,2]
[344967947,1733899878946,-500.0,0.00011099,2]
[344967948,1733899878955,-500.0,0.00011099,2]
[344967949,1733899878966,-500.0,0.00011099,2]
[344967950,1733899878976,-500.0,0.00011099,2]
[344967951,1733899878986,-368.05822455,0.00011099,2]
[344967952,1733899878997,-1945.57,0.00011099,2]
[344967953,1733899879007,-1945.57,0.00011099,2]
[344967954,1733899879020,-1945.57,0.00011099,2]
[344967955,1733899879030,-1945.57,0.00011099,2]
[344967956,1733899879041,-1945.57,0.00011099,2]
[344967957,1733899879051,-1945.57,0.00011099,2]
[344967958,1733899879062,-1945.57,0.00011099,2]
[344967959,1733899879071,-1945.57,0.00011099,2]
[344967960,1733899879081,-1945.57,0.00011099,2]
[344967961,1733899879091,-1945.57,0.00011099,2]
[344967962,1733899879102,-1945.57,0.00011099,2]
[344967963,1733899879112,-1945.57,0.00011099,2]
[344967964,1733899879122,-500.0,0.00011099,2]
[344967965,1733899879132,-1945.57,0.00011099,2]
[344967966,1733899879142,-500.0,0.00011099,2]
[344967967,1733899879151,-1945.57,0.00011099,2]
[344967968,1733899879164,-500.0,0.00011099,2]
[344967969,1733899879173,-1945.57,0.00011099,2]
[344967970,1733899879184,-500.0,0.00011099,2]
[344967971,1733899879194,-1945.57,0.00011099,2]
[344967972,1733899879205,-358.5024443,0.00011099,2]
[344967973,1733899879215,-1945.79966315,0.00011099,2]
[344967974,1733899879225,-500.0,0.00011099,2]
[344967975,1733899879235,-500.0,0.00011099,2]
[344967976,1733899879245,-500.0,0.00011099,2]
[344967977,1733899879254,-500.0,0.00011099,2]
[344967978,1733899879264,-500.0,0.00011099,2]
[344967979,1733899879275,-500.0,0.00011099,2]
[344967980,1733899879285,-500.0,0.00011099,2]
[344967981,1733899879295,-500.0,0.00011099,2]
[344967982,1733899879305,-500.0,0.00011099,2]
[344967983,1733899879316,-500.0,0.00011099,2]
[344967984,1733899879327,-500.0,0.00011099,2]
[344967985,1733899879337,-500.0,0.00011099,2]
[344967986,1733899879347,-500.0,0.00011099,2]
[344967987,1733899879357,-500.0,0.00011099,2]
[344967988,1733899879367,-500.0,0.00011099,2]
[344967989,1733899879378,-500.0,0.00011099,2]
[344967990,1733899879388,-500.0,0.00011099,2]
[344967991,1733899879398,-500.0,0.00011099,2]
[344967992,1733899879410,-500.0,0.00011099,2]
[344967993,1733899879419,-632.11062199,0.00011099,2]
[344967994,1733899879429,-500.0,0.00011099,2]
[344967995,1733899879439,-500.0,0.00011099,2]
[344967996,1733899879448,-161.03963599,0.00011099,2]
[344967997,1733899879457,-500.0,0.00011099,2]
[344967998,1733899879467,-539.83743152,0.00011099,2]
[344967999,1733899879476,-1073.35,0.00011099,2]
[344968000,1733899879487,-1073.35,0.00011099,2]
[344968001,1733899879496,-1073.35,0.00011099,2]
[344968002,1733899879505,-500.0,0.00011099,2]
[344968003,1733899879515,-1073.35,0.00011099,2]
[344968004,1733899879524,-500.0,0.00011099,2]
[344968005,1733899879534,-1073.35,0.00011099,2]
[344968006,1733899879543,-500.0,0.00011099,2]
[344968007,1733899879553,-500.0,0.00011099,2]
[344968008,1733899879562,-1073.35,0.00011099,2]
[344968009,1733899879572,-500.0,0.00011099,2]
[344968010,1733899879581,-1073.35,0.00011099,2]
[344968011,1733899879591,-500.0,0.00011099,2]
[344968012,1733899879600,-1073.35,0.00011099,2]
[344968013,1733899879610,-351.36111551,0.00011099,2]
[344968014,1733899879619,-1073.35,0.00011099,2]
[344968015,1733899879629,-1073.35,0.00011099,2]
[344968016,1733899879638,-1073.35,0.00011099,2]
[344968017,1733899879648,-1073.35,0.00011099,2]
[344968018,1733899879659,-1073.35,0.00011099,2]
[344968019,1733899879670,-1073.35,0.00011099,2]
[344968020,1733899879680,-1073.35,0.00011099,2]
[344968021,1733899879691,-1073.35,0.00011099,2]
[344968022,1733899879701,-1073.4127005,0.00011099,2]
[344968023,1733899879710,-1473.66,0.00011099,2]
[344968024,1733899879719,-1473.66,0.00011099,2]
[344968025,1733899879729,-1473.66,0.00011099,2]
[344968026,1733899879738,-1473.66,0.00011099,2]
[344968027,1733899879747,-1473.66,0.00011099,2]
[344968028,1733899879756,-500.0,0.00011099,2]
[344968029,1733899879765,-1473.66,0.00011099,2]
[344968030,1733899879775,-500.0,0.00011099,2]
[344968031,1733899879784,-1473.66,0.00011099,2]
[344968032,1733899879794,-500.0,0.00011099,2]
[344968033,1733899879803,-1473.66,0.00011099,2]
[344968034,1733899879812,-500.0,0.00011099,2]
[344968035,1733899879822,-421.24483822,0.00011099,2]
[344968036,1733899879899,-1945.81,0.00011098,2]
[344968037,1733899879912,-993.17892431,0.00011099,2]
[344968046,1733900031943,1461.98,0.0002,120]
[344968052,1733900454103,573.11,8.245e-05,2]
[344968073,1733901032438,-640.905612,9.837e-05,2]
[344968074,1733901032448,-250.0,9.887e-05,2]
[344968075,1733901032459,-1755.00595299,9.887e-05,2]
[344968076,1733901032658,-450.1191911,9.887e-05,2]
[344968077,1733901032671,-289.9470697,9.887e-05,2]
[344968078,1733901032680,-250.0,9.89e-05,2]
[344968079,1733901032689,-300.0,9.899e-05,2]
[344968080,1733901032699,-136.60544739,9.9e-05,2]
[344968081,1733901032710,-127.96615261,9.9e-05,2]
[344968082,1733901032720,-2500.0,9.9e-05,2]
[344968083,1733901032730,-5000.0,9.9e-05,2]
[344968084,1733901032739,-1266.81647179,9.9e-05,2]
[344968085,1733901032748,-182.12,9.955e-05,2]
[344968086,1733901032757,-265.05,9.955e-05,2]
[344968087,1733901032766,-150.0,9.999e-05,2]
[344968088,1733901032774,-12553.01264218,0.0001,2]
[344968089,1733901032786,-4383.22924208,0.0001,2]
[344968090,1733901032868,-83063.75811574,0.0001,2]
[344968091,1733901032877,-100000.0,0.0001,2]
[344968092,1733901032886,-100000.0,0.0001,2]
[344968093,1733901032895,-100000.0,0.0001,2]
[344968094,1733901032905,-100000.0,0.0001,2]
[344968095,1733901032914,-250.0,0.00010026,2]
[344968096,1733901032923,-200.0,0.00010074,2]
[344968097,1733901032932,-249.58,0.00010188,2]
[344968098,1733901032943,-1000.0,0.0001028,2]
[344968099,1733901032952,-471.14713095,0.0001028,2]
[344968100,1733901032961,-573.11,0.00010508,2]
[344968101,1733901032970,-307.9,0.0001055,2]
[344968102,1733901032980,-150.0,0.00010669,2]
[344968104,1733901032989,-36969.0,0.00010779,2]
[344968106,1733901032998,-420.0,0.00010889,2]
[344968108,1733901033007,-173.33164658,0.00010898,2]
[344968110,1733901033017,-500.0,0.00010958,2]
[344968112,1733901033027,-500.0,0.00010958,2]
[344968114,1733901033036,-500.0,0.00010958,2]
[344968115,1733901033046,-500.0,0.00010958,2]
[344968117,1733901033059,-500.0,0.00010958,2]
[344968119,1733901033070,-500.0,0.00010958,2]
[344968121,1733901033080,-749.59,0.00010958,2]
[344968123,1733901033091,-749.59,0.00010958,2]
[344968125,1733901033101,-500.0,0.00010958,2]
[344968127,1733901033111,-500.0,0.00010958,2]
[344968129,1733901033120,-4775.58,0.00010958,2]
[344968131,1733901033131,-4775.58,0.00010958,2]
[344968133,1733901033142,-924.61,0.00010958,2]
[344968135,1733901033153,-924.61,0.00010958,2]
[344968137,1733901033162,-500.0,0.00010958,2]
[344968139,1733901033172,-500.0,0.00010958,2]
[344968141,1733901033182,-500.0,0.00010958,2]
[344968142,1733901033192,-500.0,0.00010958,2]
[344968143,1733901033201,-500.0,0.00010958,2]
[344968144,1733901033211,-500.0,0.00010958,2]
[344968145,1733901033221,-732.61,0.00010958,2]
[344968146,1733901033231,-732.61,0.00010958,2]
[344968147,1733901033247,-4386.24,0.00010958,2]
[344968148,1733901033256,-4386.24,0.00010958,2]
[344968149,1733901033266,-500.0,0.00010958,2]
[344968150,1733901033277,-500.0,0.00010958,2]
[344968151,1733901033287,-500.0,0.00010976,2]
[344968152,1733901033299,-500.0,0.00010976,2]
[344968153,1733901033309,-500.0,0.00010976,2]
[344968154,1733901033319,-500.0,0.00010976,2]
[344968155,1733901033329,-500.0,0.00010976,2]
[344968156,1733901033339,-500.0,0.00010976,2]
[344968157,1733901033349,-500.0,0.00010976,2]
[344968158,1733901033360,-987.93,0.00010976,2]
[344968159,1733901033372,-844.82,0.00010976,2]
[344968160,1733901033381,-795.78,0.00010976,2]
[344968161,1733901033391,-1790.02,0.00010976,2]
[344968162,1733901033400,-630.34,0.00010976,2]
[344968163,1733901033411,-500.0,0.00010976,2]
[344968164,1733901033421,-500.0,0.00010976,2]
[344968165,1733901033431,-500.0,0.00010976,2]
[344968166,1733901033441,-610.12,0.00010976,2]
[344968167,1733901033451,-720.18,0.00010976,2]
[344968168,1733901033460,-880.4,0.00010976,2]
[344968169,1733901033470,-877.0,0.00010976,2]
[344968170,1733901033480,-500.0,0.00010976,2]
[344968171,1733901033490,-968.34,0.00010976,2]
[344968172,1733901033500,-538.29,0.00010976,2]
[344968173,1733901033510,-894.66,0.00010976,2]
[344968174,1733901033520,-952.96,0.00010976,2]
[344968175,1733901033530,-3131.63,0.00010976,2]
[344968176,1733901033541,-1690.0,0.00010976,2]
[344968177,1733901033553,-1027.07,0.00010976,2]
[344968178,1733901033564,-500.0,0.00010976,2]
[344968179,1733901033573,-504.8945646,0.00010976,2]
[344968180,1733901033584,-579.43,0.00010976,2]
[344968181,1733901033594,-500.0,0.00010976,2]
[344968182,1733901033607,-2585.4,0.00010976,2]
[344968183,1733901033622,-2469.55,0.00010976,2]
[344968184,1733901033635,-3917.84,0.00010976,2]
[344968185,1733901033650,-500.0,0.00010976,2]
[344968186,1733901033663,-1047.31,0.00010976,2]
[344968187,1733901033672,-3248.07,0.00010976,2]
[344968188,1733901033682,-500.0,0.00010976,2]
[344968189,1733901033693,-500.0,0.00010976,2]
[344968190,1733901033702,-500.0,0.00010976,2]
[344968191,1733901033713,-558.52,0.00010976,2]
[344968192,1733901033725,-1070.96,0.00010976,2]
[344968193,1733901033734,-1622.28,0.00010976,2]
[344968194,1733901033744,-500.0,0.00010976,2]
[344968195,1733901033754,-1545.37,0.00010976,2]
[344968196,1733901033764,-726.78,0.00010976,2]
[344968197,1733901033773,-1323.17,0.00010976,2]
[344968198,1733901033784,-500.0,0.00010976,2]
[344968199,1733901033794,-1766.26,0.00010976,2]
[344968200,1733901033806,-1630.02,0.00010976,2]
[344968201,1733901033816,-500.0,0.00010976,2]
[344968202,1733901033826,-500.0,0.00010976,2]
[344968203,1733901033837,-669.52,0.00010976,2]
[344968204,1733901033846,-1166.47,0.00010976,2]
[344968205,1733901033856,-500.0,0.00010976,2]
[344968206,1733901033866,-685.18,0.00010976,2]
[344968207,1733901033875,-500.0,0.00010976,2]
[344968208,1733901033885,-1399.03,0.00010976,2]
[344968209,1733901033895,-1150.02,0.00010976,2]
[344968210,1733901033904,-749.59,0.00010976,2]
[344968211,1733901033914,-1641.38,0.00010976,2]
[344968212,1733901033923,-500.0,0.00010976,2]
[344968213,1733901033933,-4775.58,0.00010976,2]
[344968214,1733901033943,-924.61,0.00010976,2]
[344968215,1733901033953,-1658.58,0.00010976,2]
[344968216,1733901033962,-500.0,0.00010976,2]
[344968217,1733901033972,-1064.06,0.00010976,2]
[344968218,1733901033982,-500.0,0.00010976,2]
[344968219,1733901033992,-500.0,0.00010976,2]
[344968220,1733901034001,-500.0,0.00010976,2]
[344968221,1733901034012,-500.0,0.00010976,2]
[344968222,1733901034022,-500.0,0.00010976,2]
[344968223,1733901034036,-500.0,0.00010976,2]
[344968224,1733901034046,-500.0,0.00010976,2]
[344968225,1733901034059,-500.0,0.00010976,2]
[344968226,1733901034069,-732.61,0.00010976,2]
[344968227,1733901034079,-4386.24,0.00010976,2]
[344968228,1733901034089,-535.24,0.00010976,2]
[344968229,1733901034098,-500.0,0.00010976,2]
[344968230,1733901034108,-500.0,0.00010977,2]
[344968231,1733901034118,-500.0,0.00010977,2]
[344968232,1733901034128,-509.32,0.00010977,2]
[344968233,1733901034138,-500.0,0.00010977,2]
[344968234,1733901034147,-500.0,0.00010977,2]
[344968235,1733901034157,-500.0,0.00010977,2]
[344968236,1733901034166,-500.0,0.00010977,2]
[344968237,1733901034176,-500.0,0.00010977,2]
[344968238,1733901034186,-500.0,0.00010977,2]
[344968239,1733901034195,-500.0,0.00010977,2]
[344968240,1733901034205,-500.0,0.00010977,2]
[344968241,1733901034215,-500.0,0.00010977,2]
[344968242,1733901034225,-500.0,0.00010977,2]
[344968243,1733901034234,-708.65,0.00010977,2]
[344968244,1733901034244,-500.0,0.00010977,2]
[344968245,1733901034253,-502.37,0.00010977,2]
[344968246,1733901034263,-680.68,0.00010977,2]
[344968247,1733901034273,-515.40153008,0.00010977,2]
[344968248,1733901034283,-500.0,0.00010977,2]
[344968249,1733901034293,-500.0,0.00010977,2]
[344968250,1733901034306,-500.0,0.00010977,2]
[344968251,1733901034316,-500.0,0.00010977,2]
[344968252,1733901034325,-500.0,0.00010977,2]
[344968253,1733901034335,-500.0,0.00010977,2]
[344968254,1733901034345,-500.0,0.00010977,2]
[344968255,1733901034355,-534.67,0.00010977,2]
[344968256,1733901034367,-500.0,0.00010977,2]
[344968257,1733901034377,-500.0,0.00010977,2]
[344968258,1733901034387,-779.46,0.00010977,2]
[344968259,1733901034397,-500.0,0.00010977,2]
[344968260,1733901034406,-500.0,0.00010977,2]
[344968261,1733901034415,-500.0,0.00010977,2]
[344968262,1733901034425,-500.0,0.00010977,2]
[344968263,1733901034434,-500.0,0.00010977,2]
[344968264,1733901034443,-500.0,0.00010977,2]
[344968265,1733901034453,-500.0,0.00010977,2]
[344968266,1733901034462,-727.65,0.00010977,2]
[344968267,1733901034471,-500.0,0.00010977,2]
[344968268,1733901034481,-463.03669736,0.00010977,2]
[344968269,1733901034491,-500.0,0.00010977,2]
[344968270,1733901034500,-549.68,0.00010977,2]
[344968271,1733901034510,-500.0,0.00010977,2]
[344968272,1733901034520,-500.0,0.00010977,2]
[344968273,1733901034530,-500.0,0.00010977,2]
[344968274,1733901034540,-500.0,0.00010977,2]
[344968275,1733901034552,-500.0,0.00010977,2]
[344968276,1733901034562,-645.61,0.00010977,2]
[344968277,1733901034572,-500.0,0.00010977,2]
[344968278,1733901034581,-987.93,0.00010977,2]
[344968279,1733901034591,-844.82,0.00010977,2]
[344968280,1733901034601,-500.0,0.00010977,2]
[344968281,1733901034610,-747.98,0.00010977,2]
[344968282,1733901034620,-795.78,0.00010977,2]
[344968283,1733901034629,-500.0,0.00010977,2]
[344968284,1733901034639,-500.0,0.00010977,2]
[344968285,1733901034648,-1790.02,0.00010977,2]
[344968286,1733901034657,-500.0,0.00010977,2]
[344968287,1733901034667,-500.0,0.00010977,2]
[344968288,1733901034676,-500.0,0.00010977,2]
[344968289,1733901034686,-630.34,0.00010977,2]
[344968290,1733901034695,-500.0,0.00010977,2]
[344968291,1733901034705,-500.0,0.00010977,2]
[344968292,1733901034714,-500.0,0.00010977,2]
[344968293,1733901034723,-500.0,0.00010977,2]
[344968294,1733901034733,-500.0,0.00010977,2]
[344968295,1733901034742,-500.0,0.00010977,2]
[344968296,1733901034753,-500.0,0.00010977,2]
[344968297,1733901034763,-610.12,0.00010977,2]
[344968298,1733901034772,-590.85,0.00010977,2]
[344968299,1733901034782,-500.0,0.00010977,2]
[344968300,1733901034792,-671.59,0.00010977,2]
[344968301,1733901034803,-500.0,0.00010977,2]
[344968302,1733901034812,-500.0,0.00010977,2]
[344968303,1733901034821,-720.18,0.00010977,2]
[344968304,1733901034831,-266.9698098,0.00010977,2]
[344968305,1733901034840,-500.0,0.00010977,2]
[344968306,1733901034849,-1050.78,0.00010977,2]
[344968307,1733901034862,-880.4,0.00010977,2]
[344968308,1733901034871,-500.0,0.00010977,2]
[344968309,1733901034880,-500.0,0.00010977,2]
[344968310,1733901034889,-877.0,0.00010977,2]
[344968311,1733901034898,-500.0,0.00010977,2]
[344968312,1733901034907,-500.0,0.00010977,2]
[344968313,1733901034916,-884.41,0.00010977,2]
[344968314,1733901034926,-500.0,0.00010977,2]
[344968315,1733901034935,-500.0,0.00010977,2]
[344968316,1733901034944,-500.0,0.00010977,2]
[344968317,1733901034954,-968.34,0.00010977,2]
[344968318,1733901034963,-500.0,0.00010977,2]
[344968319,1733901034972,-500.0,0.00010977,2]
[344968320,1733901034982,-538.29,0.00010977,2]
[344968321,1733901035177,-500.0,0.00010977,2]
[344968322,1733901035187,-500.0,0.00010977,2]
[344968323,1733901035196,-598.55,0.00010977,2]
[344968324,1733901035206,-894.66,0.00010977,2]
[344968325,1733901035216,-500.0,0.00010977,2]
[344968326,1733901035225,-500.0,0.00010977,2]
[344968327,1733901035234,-952.96,0.00010977,2]
[344968328,1733901035244,-500.0,0.00010977,2]
[344968329,1733901035253,-500.0,0.00010977,2]
[344968330,1733901035262,-808.86,0.00010977,2]
[344968331,1733901035279,-3131.63,0.00010977,2]
[344968332,1733901035289,-1690.0,0.00010977,2]
[344968333,1733901035298,-1498.41,0.00010977,2]
[344968334,1733901035308,-1027.07,0.00010977,2]
[344968335,1733901035317,-672.98,0.00010977,2]
[344968336,1733901035327,-500.0,0.00010977,2]
[344968337,1733901035338,-500.0,0.00010977,2]
[344968338,1733901035349,-507.0547634,0.00010977,2]
[344968339,1733901035362,-500.0,0.00010977,2]
[344968340,1733901035373,-313.9671858,0.00010977,2]
[344968341,1733901035382,-538.59,0.00010977,2]
[344968342,1733901035392,-538.58,0.00010977,2]
[344968343,1733901035401,-579.43,0.00010977,2]
[344968344,1733901035412,-500.0,0.00010977,2]
[344968345,1733901035421,-2585.4,0.00010977,2]
[344968346,1733901035431,-500.0,0.00010977,2]
[344968347,1733901035442,-2469.55,0.00010977,2]
[344968348,1733901035451,-618.32,0.00010977,2]
[344968349,1733901035461,-3917.84,0.00010977,2]
[344968350,1733901035470,-500.0,0.00010977,2]
[344968351,1733901035479,-689.62,0.00010977,2]
[344968352,1733901035489,-500.0,0.00010977,2]
[344968353,1733901035498,-500.0,0.00010977,2]
[344968354,1733901035507,-1047.31,0.00010977,2]
[344968355,1733901035517,-3248.07,0.00010977,2]
[344968356,1733901035526,-957.29,0.00010977,2]
[344968357,1733901035535,-500.0,0.00010977,2]
[344968358,1733901035545,-500.0,0.00010977,2]
[344968359,1733901035560,-500.0,0.00010977,2]
[344968360,1733901035569,-500.0,0.00010977,2]
[344968361,1733901035579,-582.0,0.00010977,2]
[344968362,1733901035589,-560.12,0.00010977,2]
[344968363,1733901035599,-500.0,0.00010977,2]
[344968364,1733901035608,-770.56,0.00010977,2]
[344968365,1733901035617,-635.55,0.00010977,2]
[344968366,1733901035626,-500.0,0.00010977,2]
[344968367,1733901035635,-500.0,0.00010977,2]
[344968368,1733901035644,-762.73,0.00010977,2]
[344968369,1733901035653,-500.0,0.00010977,2]
[344968370,1733901035662,-562.13,0.00010977,2]
[344968371,1733901035672,-500.0,0.00010977,2]
[344968372,1733901035681,-500.0,0.00010977,2]
[344968373,1733901035691,-500.0,0.00010977,2]
[344968374,1733901035700,-558.52,0.00010977,2]
[344968375,1733901035710,-500.0,0.00010977,2]
[344968376,1733901035719,-500.0,0.00010977,2]
[344968377,1733901035731,-1070.96,0.00010977,2]
[344968378,1733901035740,-500.0,0.00010977,2]
[344968379,1733901035750,-570.34,0.00010977,2]
[344968380,1733901035760,-1622.28,0.00010977,2]
[344968381,1733901035769,-500.0,0.00010977,2]
[344968382,1733901035778,-1545.37,0.00010977,2]
[344968383,1733901035788,-1323.17,0.00010977,2]
[344968384,1733901036004,-500.0,0.00010977,2]
[344968385,1733901036015,-1766.26,0.00010977,2]
[344968386,1733901036026,-1630.02,0.00010977,2]
[344968387,1733901036036,-500.0,0.00010977,2]
[344968388,1733901036045,-500.0,0.00010977,2]
[344968389,1733901036058,-669.52,0.00010977,2]
[344968390,1733901036068,-500.0,0.00010977,2]
[344968391,1733901036078,-1166.47,0.00010977,2]
[344968392,1733901036087,-685.18,0.00010977,2]